bitfinex-derivatives/quotes_BTCF0:USTF0_20251217
["timestamp","ask_amount","ask_price","bid_price","bid_amount"]
[1765982516867,0.3608,87532.0,87515.0,1.08728]
[1765982517175,0.3608,87532.0,87531.0,0.0114281]
[1765982517176,1.0389,87532.0,87531.0,0.0114281]
[1765982517561,1.03899345,87532.0,87531.0,0.0114281]
[1765982517859,0.6781,87524.0,87523.0,0.00017134]
[1765982518062,1.0389,87524.0,87523.0,0.00017134]
[1765982519073,1.0389,87524.0,87504.0,0.04196676]
[1765982519074,0.6781,87505.0,87504.0,0.04196676]
[1765982519366,9.345e-05,87505.0,87500.0,0.0114322]
[1765982519573,0.6781,87503.0,87502.0,0.0114318]
[1765982520667,0.6781,87493.0,87492.0,0.39137727]
[1765982520977,0.6781,87498.0,87497.0,0.0114325]
[1765982521269,0.21577,87500.0,87482.0,0.3608]
[1765982521270,0.6781,87495.0,87493.0,0.03057727]
[1765982521460,0.6781,87492.0,87484.0,0.0114342]
[1765982521666,0.6781,87485.0,87483.0,0.0114344]
[1765982521864,0.67827144,87493.0,87492.0,0.0114332]
[1765982522066,0.00017144,87493.0,87492.0,0.6773732]
[1765982522267,0.00017144,87493.0,87492.0,0.70804422]
[1765982522574,0.67827144,87493.0,87492.0,0.0114332]
[1765982522768,0.67841487,87493.0,87492.0,0.0114332]
[1765982523174,0.00031487,87493.0,87492.0,0.6773732]
[1765982524388,0.3608,87511.0,87510.0,0.0114309]
[1765982524588,0.71019,87511.0,87510.0,0.04212127]
[1765982524789,0.71019,87511.0,87510.0,0.6961409]
[1765982524790,0.3608,87511.0,87510.0,0.6961409]
[1765982525088,1.03869,87524.0,87523.0,0.0114292]
[1765982525295,0.67789,87512.0,87511.0,0.04093864]
[1765982525596,0.3608,87512.0,87511.0,0.68471]
[1765982525897,0.3608,87519.0,87518.0,0.0114297]
[1765982525898,0.67789,87519.0,87518.0,0.0114297]
[1765982526089,0.67789,87519.0,87518.0,0.04213762]
[1765982526284,0.67789,87519.0,87518.0,0.0114297]
[1765982526588,0.342,87516.0,87515.0,0.05237405]
[1765982526891,0.342,87516.0,87515.0,0.0114302]
[1765982527093,0.3608,87520.0,87505.0,0.0819064]
[1765982527094,0.67789,87513.0,87505.0,0.0819064]
[1765982527289,0.67789,87504.0,87503.0,0.00017144]
[1765982527797,0.67789,87501.0,87500.0,0.03075553]
[1765982527990,0.67789,87500.0,87499.0,0.03075553]
[1765982528192,0.67789,87489.0,87488.0,0.07294188]
[1765982528492,0.66132,87485.0,87484.0,0.07294248]
[1765982529191,0.66132,87485.0,87484.0,0.0114343]
[1765982529398,0.66132,87485.0,87484.0,0.0729361]
[1765982529697,0.66132,87485.0,87484.0,0.0114343]
[1765982529894,0.3608,87489.0,87488.0,0.3360537]
[1765982530100,0.68605,87489.0,87488.0,0.0114337]
[1765982530800,0.3608,87489.0,87488.0,0.3360537]
[1765982531098,0.3608,87489.0,87488.0,0.0114337]
[1765982531299,0.3608,87489.0,87488.0,0.6827337]
[1765982531499,0.00017144,87493.0,87492.0,0.6817332]
[1765982531998,0.3608,87519.0,87518.0,0.0114298]
[1765982532297,0.87709,87528.0,87527.0,0.0114287]
[1765982532990,0.66132,87528.0,87527.0,0.0114287]
[1765982533594,0.66132,87520.0,87519.0,0.06164743]
[1765982534090,0.66132,87520.0,87519.0,0.00017144]
[1765982535089,0.3608,87523.0,87520.0,0.0114296]
[1765982535694,0.3608,87533.0,87520.0,0.0114296]
[1765982535899,0.32525,87530.0,87529.0,0.0114283]
[1765982536097,0.87591,87520.0,87519.0,0.00017144]
[1765982536801,0.66149144,87536.0,87532.0,0.0114279]
[1765982536998,0.66132,87520.0,87519.0,0.01160114]
[1765982537201,0.66132,87520.0,87497.0,3e-06]
[1765982537202,0.21459,87510.0,87497.0,3e-06]
[1765982537398,0.66132,87475.0,87453.0,0.3608]
[1765982537593,0.66132,87465.0,87464.0,0.0114369]
[1765982537797,0.33607,87465.0,87463.0,0.011437]
[1765982537997,0.3608,87473.0,87465.0,0.0114368]
[1765982538189,0.3608,87473.0,87466.0,0.0114366]
[1765982538389,0.3608,87473.0,87462.0,0.011437]
[1765982538598,0.32525,87460.0,87459.0,0.0114375]
[1765982538804,0.3608,87465.0,87458.0,0.00728683]
[1765982538805,0.66132,87459.0,87458.0,0.00728683]
[1765982538999,0.66132,87459.0,87458.0,0.01372453]
[1765982539209,0.3608,87465.0,87459.0,0.0114374]
[1765982539407,0.3608,87465.0,87458.0,0.00228683]
[1765982539408,0.66132,87459.0,87458.0,0.00228683]
[1765982539905,0.3608,87465.0,87464.0,0.0114369]
[1765982540296,0.72676,87473.0,87460.0,0.3608]
[1765982540501,0.00017144,87478.0,87469.0,0.0114362]
[1765982541201,0.3608,87473.0,87466.0,0.0114366]
[1765982541408,0.3608,87473.0,87465.0,0.21064]
[1765982541595,0.00017144,87478.0,87477.0,0.6817352]
[1765982541797,0.00017144,87478.0,87477.0,0.6703]
[1765982542103,0.00017144,87478.0,87465.0,0.21064]
[1765982542320,0.00017144,87478.0,87475.0,0.0114354]
[1765982542607,0.00017144,87478.0,87477.0,0.6703]
[1765982542903,0.00017144,87478.0,87475.0,0.0114354]
[1765982543701,0.00017144,87478.0,87472.0,0.3608]
[1765982543894,0.32525,87476.0,87468.0,0.0114364]
[1765982544099,0.32525,87467.0,87464.0,0.72668]
[1765982544300,0.32525,87465.0,87464.0,0.72668]
[1765982544698,0.66132,87459.0,87458.0,0.01372443]
[1765982544907,0.3608,87473.0,87458.0,0.01372443]
[1765982544908,0.66132,87466.0,87465.0,0.0114367]
[1765982545298,0.68605,87473.0,87472.0,0.0114358]
[1765982545497,1.02212,87473.0,87472.0,0.0114358]
[1765982546001,1.02212,87473.0,87462.0,0.3608]
[1765982546207,0.66132,87471.0,87470.0,0.011436]
[1765982546405,0.32525,87468.0,87467.0,0.0114365]
[1765982546798,0.66132,87468.0,87467.0,0.0114365]
[1765982546997,0.17249645,87477.0,87463.0,0.011437]
[1765982547211,0.17249645,87477.0,87458.0,0.00228683]
[1765982547212,0.00017144,87478.0,87477.0,0.6703]
[1765982547502,0.00017144,87478.0,87477.0,1.0311]
[1765982548504,0.53329645,87500.0,87479.0,0.0114349]
[1765982548705,0.53329645,87500.0,87477.0,0.3628]
[1765982548706,0.17249645,87490.0,87477.0,0.3628]
[1765982549008,0.32525,87494.0,87493.0,0.011433]
[1765982549595,0.3608,87500.0,87498.0,0.0114324]
[1765982549795,0.32525,87499.0,87498.0,0.0114324]
[1765982549993,0.66132,87499.0,87498.0,0.0114324]
[1765982550196,0.66132,87496.0,87495.0,0.0114328]
[1765982550406,0.66132,87492.0,87491.0,0.0114332]
[1765982550794,0.66132,87492.0,87485.0,0.00017144]
[1765982550795,0.66132,87486.0,87485.0,0.00017144]
[1765982551195,0.3608,87492.0,87491.0,0.6703]
[1765982551400,0.53429645,87500.0,87499.0,0.0114323]
[1765982551401,1.19461645,87500.0,87499.0,0.0114323]
[1765982551601,0.3608,87509.0,87501.0,0.6703]
[1765982551802,0.3608,87519.0,87501.0,0.6703]
[1765982551996,0.17249645,87511.0,87501.0,0.6703]
[1765982552210,0.53329645,87511.0,87501.0,0.6703]
[1765982552509,0.3608,87511.0,87501.0,0.6703]
[1765982552701,0.53329645,87511.0,87501.0,0.32462]
[1765982552901,0.0114298,87510.0,87501.0,0.32462]
[1765982553112,0.66149144,87502.0,87501.0,0.0114309]
[1765982553301,0.00017144,87502.0,87495.0,0.0114316]
[1765982553708,0.00017144,87502.0,87492.0,0.372232]
[1765982553907,0.00017144,87502.0,87494.0,0.0114318]
[1765982554213,0.00017144,87502.0,87485.0,0.00017144]
[1765982554214,0.32525,87486.0,87485.0,0.00017144]
[1765982554400,0.66761,87486.0,87485.0,0.00017144]
[1765982554605,1.02841,87486.0,87485.0,0.00017144]
[1765982555113,0.66761,87486.0,87485.0,0.00017144]
[1765982555312,0.66761,87486.0,87485.0,0.00117144]
[1765982555713,0.32525,87486.0,87485.0,0.00117144]
[1765982555913,0.3608,87495.0,87489.0,0.0114324]
[1765982556106,0.69486,87486.0,87485.0,0.00117144]
[1765982556409,1.05566,87486.0,87485.0,0.00117144]
[1765982557000,1.05566,87486.0,87485.0,0.00017144]
[1765982557201,1.05666,87486.0,87485.0,0.00017144]
[1765982557717,1.05566,87486.0,87485.0,0.00017144]
[1765982558401,1.05566,87495.0,87494.0,0.0114318]
[1765982558609,0.69486,87493.0,87492.0,0.011432]
[1765982558906,0.3525,87493.0,87492.0,0.011432]
[1765982559306,0.69486,87493.0,87492.0,0.011432]
[1765982560113,0.69486,87493.0,87488.0,0.0114325]
[1765982560314,0.69486,87486.0,87485.0,0.00017144]
[1765982561112,0.69486,87492.0,87491.0,0.0114322]
[1765982562115,0.3525,87492.0,87491.0,0.0114322]
[1765982562719,0.00017144,87502.0,87495.0,0.0114316]
[1765982563017,0.00017144,87502.0,87494.0,0.0114318]
[1765982563216,0.00017144,87502.0,87501.0,0.0114309]
[1765982563418,0.00017144,87502.0,87501.0,0.3469809]
[1765982563608,0.00017144,87502.0,87501.0,1.0530609]
[1765982563812,0.69503144,87502.0,87501.0,0.3722309]
[1765982564410,0.00017144,87502.0,87501.0,1.0530609]
[1765982564917,0.00017144,87502.0,87501.0,1.0540609]
[1765982566910,0.3525,87521.0,87520.0,0.0114283]
[1765982567308,0.17249645,87530.0,87501.0,0.3628]
[1765982567309,0.69486,87512.0,87501.0,0.3628]
[1765982567521,0.69486,87502.0,87501.0,0.002]
[1765982568119,0.17249645,87511.0,87501.0,0.002]
[1765982568120,0.00017144,87510.0,87501.0,0.002]
[1765982568325,0.00017144,87510.0,87504.0,0.0114305]
[1765982568618,0.00017144,87510.0,87509.0,0.0114299]
[1765982568821,0.69486,87505.0,87504.0,0.3608]
[1765982569026,0.69486,87502.0,87501.0,0.003]
[1765982570212,0.69486,87501.0,87500.0,0.0114309]
[1765982570624,0.00017144,87510.0,87509.0,0.3469799]
[1765982570823,0.69503144,87510.0,87509.0,0.0114299]
[1765982571211,0.69486,87507.0,87506.0,0.0114301]
[1765982571622,0.00017144,87510.0,87509.0,0.6922599]
[1765982572721,1.05566,87535.0,87514.0,0.20632]
[1765982572934,0.17249645,87530.0,87524.0,0.3608]
[1765982573120,0.3525,87530.0,87529.0,0.0114272]
[1765982573326,0.3608,87535.0,87531.0,0.0114269]
[1765982573512,0.3525,87532.0,87531.0,0.0114269]
[1765982573713,0.3525,87525.0,87524.0,0.3608]
[1765982573925,0.69486,87525.0,87524.0,0.3608]
[1765982575213,0.69486,87524.0,87523.0,0.00017144]
[1765982576424,0.7226492,87524.0,87523.0,0.00017144]
[1765982576719,0.69486,87500.0,87499.0,0.0114311]
[1765982576924,0.69486,87489.0,87488.0,0.3722326]
[1765982578720,0.00017144,87497.0,87496.0,0.6922616]
[1765982578923,0.00017144,87497.0,87496.0,1.0530616]
[1765982579324,0.001,87500.0,87499.0,0.6922612]
[1765982579729,0.11757371,87510.0,87496.0,1.08728]
[1765982579924,0.3525,87508.0,87507.0,0.0114301]
[1765982580124,0.3525,87508.0,87504.0,0.3608]
[1765982580125,0.69486,87508.0,87504.0,0.3608]
[1765982580433,0.11757371,87514.0,87510.0,0.0114296]
[1765982580636,0.3525,87511.0,87510.0,0.0114296]
[1765982580928,0.3608,87549.0,87536.0,0.0114262]
[1765982581129,0.0114265,87535.0,87525.0,0.20632]
[1765982581335,0.3608,87540.0,87518.0,0.3608]
[1765982581633,0.11757371,87540.0,87538.0,0.0114261]
[1765982581831,0.00017144,87548.0,87538.0,0.0114261]
[1765982582031,0.00017144,87548.0,87536.0,0.3608]
[1765982582032,0.69486,87537.0,87536.0,0.3608]
[1765982582330,0.11757371,87546.0,87540.0,0.0114258]
[1765982582522,0.02777609,87545.0,87540.0,0.0114258]
[1765982582719,0.00017144,87548.0,87536.0,0.5785462]
[1765982583036,0.69486,87531.0,87530.0,0.01159854]
[1765982583537,0.69486,87531.0,87530.0,0.00017144]
[1765982583734,0.69486,87531.0,87512.0,0.0114294]
[1765982583735,0.69486,87513.0,87512.0,0.0114294]
[1765982584034,0.69486,87513.0,87490.0,0.11757371]
[1765982584035,0.3525,87510.0,87506.0,0.3608]
[1765982584232,0.3608,87523.0,87513.0,0.0114292]
[1765982584233,0.11757371,87520.0,87513.0,0.0114292]
[1765982584628,0.11757371,87520.0,87517.0,0.0114288]
[1765982584936,0.36097134,87525.0,87508.0,0.00017134]
[1765982585136,0.00017134,87525.0,87522.0,0.0114281]
[1765982585326,0.68104,87517.0,87516.0,0.3608]
[1765982585528,0.33358,87510.0,87509.0,0.0114298]
[1765982585933,0.45115371,87520.0,87519.0,0.0114285]
[1765982586232,0.00017134,87525.0,87516.0,0.3608]
[1765982586233,0.68104,87517.0,87516.0,0.3608]
[1765982586636,0.68104,87517.0,87516.0,0.3722289]
[1765982586837,0.68104,87517.0,87516.0,0.0114289]
[1765982587029,0.68104,87509.0,87508.0,0.00017134]
[1765982587532,0.70878981,87509.0,87508.0,0.00017134]
[1765982587733,0.68104,87514.0,87513.0,0.0114292]
[1765982587936,0.68104,87509.0,87508.0,0.00017134]
[1765982588336,1.06958534,87509.0,87508.0,0.00017134]
[1765982588633,0.65788,87497.0,87496.0,0.0114314]
[1765982588835,0.65788,87497.0,87487.0,0.3608]
[1765982588836,0.65788,87494.0,87493.0,0.0114319]
[1765982589334,0.65788,87501.0,87500.0,0.011431]
[1765982589836,1.01985144,87509.0,87508.0,0.01143]
[1765982590133,1.01885144,87509.0,87508.0,0.01143]
[1765982590334,0.00017144,87509.0,87508.0,0.716]
[1765982590528,0.11757371,87520.0,87519.0,0.0114285]
[1765982590724,0.11757371,87529.0,87511.0,0.0114296]
[1765982590933,0.11757371,87521.0,87520.0,0.0114284]
[1765982591127,0.3608,87530.0,87516.0,0.3608]
[1765982591439,0.3608,87530.0,87526.0,0.0114275]
[1765982591440,0.65788,87527.0,87526.0,0.0114275]
[1765982591638,0.33307,87524.0,87523.0,0.011428]
[1765982591830,0.6855693,87524.0,87523.0,0.011428]
[1765982592439,0.6855693,87524.0,87519.0,0.0114285]
[1765982592734,0.65788,87524.0,87516.0,0.3608]
[1765982593140,0.65788,87524.0,87521.0,0.0114283]
[1765982593842,0.11757371,87531.0,87521.0,0.0114282]
[1765982594040,0.02770582,87530.0,87520.0,0.2089]
[1765982594236,0.11757371,87531.0,87520.0,0.2089]
[1765982594237,0.02770582,87529.0,87523.0,0.0114279]
[1765982594539,0.65788,87524.0,87523.0,0.0114279]
[1765982594935,0.33307,87524.0,87523.0,0.0114279]
[1765982595141,0.00017144,87532.0,87530.0,0.0114271]
[1765982595633,0.65788,87531.0,87530.0,0.0114271]
[1765982596434,0.65788,87531.0,87528.0,0.3608]
[1765982596435,0.65788,87518.0,87517.0,0.3608]
[1765982596635,0.65788,87516.0,87515.0,0.011429]
[1765982596837,0.33307,87516.0,87515.0,0.011429]
[1765982597143,0.11757371,87525.0,87519.0,0.0114285]
[1765982597333,0.33307,87523.0,87522.0,0.0114282]
[1765982597734,0.33307,87523.0,87509.0,0.3608]
[1765982598038,0.33307,87521.0,87517.0,0.0114288]
[1765982598241,0.33307,87521.0,87519.0,0.0114285]
[1765982598738,0.65788,87515.0,87512.0,0.0114294]
[1765982599136,0.33307,87519.0,87518.0,0.0114286]
[1765982599339,0.65788,87519.0,87518.0,0.0114286]
[1765982599539,0.65788,87516.0,87515.0,0.001]
[1765982599841,0.33307,87515.0,87514.0,0.01260064]
[1765982600040,1.01868,87523.0,87522.0,0.0114282]
[1765982600345,1.01868,87523.0,87514.0,0.00117144]
[1765982600346,0.65788,87520.0,87519.0,0.0114285]
[1765982600638,0.65788,87519.0,87518.0,0.0114286]
[1765982601733,0.33307,87523.0,87522.0,0.0114282]
[1765982601930,0.65788,87520.0,87519.0,0.0114285]
[1765982602142,0.65788,87515.0,87514.0,0.00117144]
[1765982602643,0.65788,87515.0,87514.0,0.00017144]
[1765982603237,0.69387,87523.0,87522.0,0.0114282]
[1765982603641,1.01868,87523.0,87522.0,0.0114282]
[1765982604143,1.01868,87523.0,87514.0,0.00017144]
[1765982604349,0.3608,87523.0,87522.0,0.0114282]
[1765982604532,0.65788,87515.0,87514.0,0.00017144]
[1765982604732,0.65788,87515.0,87514.0,0.01160064]
[1765982605543,1.01868,87523.0,87514.0,0.36097144]
[1765982605742,0.33307,87515.0,87514.0,0.01160064]
[1765982606044,0.65788,87515.0,87514.0,0.01160064]
[1765982606243,0.65788,87515.0,87514.0,0.37240064]
[1765982606447,0.33307,87515.0,87514.0,1.07697064]
[1765982606743,1.01868,87523.0,87522.0,0.0114282]
[1765982606938,0.65788,87520.0,87519.0,0.0114285]
[1765982607140,0.65788,87515.0,87514.0,0.00117144]
[1765982607339,0.65788,87515.0,87514.0,0.00017144]
[1765982607540,0.65788,87515.0,87514.0,0.00117144]
[1765982607742,0.65788,87515.0,87514.0,0.00100004]
[1765982608041,0.3608,87515.0,87514.0,4e-08]
[1765982608246,0.38854579,87515.0,87514.0,4e-08]
[1765982608749,0.78854579,87515.0,87514.0,4e-08]
[1765982608941,0.65788,87500.0,87499.0,0.0114311]
[1765982609141,0.65788,87496.0,87495.0,0.0114317]
[1765982609350,0.65788,87492.0,87491.0,0.0114321]
[1765982610237,0.00017144,87500.0,87499.0,0.0114312]
[1765982610238,0.65905144,87500.0,87499.0,0.0114312]
[1765982610641,0.65805144,87500.0,87499.0,0.0114312]
[1765982610846,0.65805144,87500.0,87494.0,0.3608]
[1765982610847,0.00017144,87500.0,87494.0,0.3608]
[1765982611043,0.33307,87495.0,87494.0,0.3722318]
[1765982611246,0.65788,87495.0,87494.0,0.3722318]
[1765982611558,0.33307,87499.0,87498.0,0.0114312]
[1765982611852,0.65788,87499.0,87498.0,0.0114312]
[1765982612048,0.00017144,87500.0,87486.0,0.3608]
[1765982612049,0.65788,87487.0,87486.0,0.3608]
[1765982612253,0.65788,87487.0,87486.0,0.3722329]
[1765982612646,0.47862259,87500.0,87492.0,0.011432]
[1765982612849,0.33307,87493.0,87492.0,0.716002]
[1765982613055,0.00017144,87500.0,87496.0,0.0114315]
[1765982613255,0.00017144,87500.0,87498.0,0.0114312]
[1765982613455,0.00017144,87500.0,87499.0,0.35204]
[1765982613655,0.33324144,87500.0,87499.0,0.35204]
[1765982613853,0.00017144,87500.0,87499.0,0.70457]
[1765982615357,0.00017144,87500.0,87499.0,1.06537]
[1765982615946,0.11765115,87510.0,87500.0,0.011431]
[1765982616146,0.11765115,87510.0,87509.0,0.3608]
[1765982616147,0.79461115,87510.0,87509.0,0.3608]
[1765982616349,0.67696,87510.0,87509.0,0.3608]
[1765982617574,0.67696,87510.0,87509.0,0.3618]
[1765982617873,0.67696,87510.0,87509.0,0.001]
[1765982618965,0.67696,87505.0,87504.0,0.0114305]
[1765982619668,0.67696,87502.0,87501.0,0.00017144]
[1765982620075,1.03776,87502.0,87501.0,0.00017144]
[1765982621064,1.03776,87502.0,87501.0,4e-08]
[1765982622173,0.67896,87502.0,87501.0,4e-08]
[1765982622771,0.3608,87509.0,87508.0,0.66766]
[1765982622971,1.03776,87509.0,87508.0,0.01143]
[1765982623566,0.67696,87509.0,87508.0,0.33623]
[1765982623872,0.67696,87509.0,87508.0,0.01143]
[1765982624773,0.34364144,87518.0,87517.0,0.0114288]
[1765982624973,0.67713144,87518.0,87517.0,0.0114288]
[1765982626363,0.67696,87512.0,87511.0,0.0114295]
[1765982626569,0.67696,87509.0,87508.0,0.0114299]
[1765982626878,0.67696,87507.0,87506.0,0.3608]
[1765982627972,0.11765115,87516.0,87506.0,1.01703]
[1765982628270,0.0114307,87503.0,87501.0,4e-08]
[1765982628879,0.02764422,87502.0,87501.0,4e-08]
[1765982630081,0.03907502,87502.0,87501.0,4e-08]
[1765982630281,0.04107502,87502.0,87501.0,4e-08]
[1765982630572,0.02964422,87502.0,87501.0,4e-08]
[1765982631476,0.1217656,87502.0,87501.0,4e-08]
[1765982632275,0.1207656,87502.0,87501.0,4e-08]
[1765982632476,0.5207656,87502.0,87501.0,4e-08]
[1765982632664,0.5207656,87502.0,87465.0,0.08197617]
[1765982632665,0.67696,87476.0,87475.0,0.3722343]
[1765982632871,1.03776,87485.0,87484.0,0.0114331]
[1765982633070,0.67696,87485.0,87484.0,0.0114331]
[1765982633281,0.3608,87493.0,87484.0,0.0114331]
[1765982633282,1.03776,87493.0,87492.0,0.0114321]
[1765982633470,1.03776,87493.0,87484.0,0.3608]
[1765982633471,0.67696,87485.0,87484.0,0.3608]
[1765982633671,0.67696,87484.0,87483.0,0.0114332]
[1765982633971,0.67696,87481.0,87480.0,0.0114336]
[1765982634280,0.3608,87485.0,87476.0,0.00017144]
[1765982634281,0.67696,87477.0,87476.0,0.00017144]
[1765982635674,0.67696,87477.0,87476.0,0.36297144]
[1765982635874,0.67696,87477.0,87476.0,0.00217144]
[1765982636273,0.8214,87477.0,87476.0,0.00217144]
[1765982636675,1.20977191,87477.0,87476.0,0.00217144]
[1765982636874,0.67696,87477.0,87476.0,0.00217144]
[1765982637877,0.688394,87477.0,87476.0,0.00217144]
[1765982638282,1.049194,87477.0,87476.0,0.00217144]
[1765982638484,1.049194,87477.0,87476.0,0.00017144]
[1765982638682,1.051194,87477.0,87476.0,0.00017144]
[1765982639180,1.049194,87477.0,87476.0,0.00017144]
[1765982639386,1.051194,87477.0,87476.0,0.00017144]
[1765982639779,1.049194,87477.0,87476.0,0.00017144]
[1765982639976,0.67896,87477.0,87476.0,0.01160564]
[1765982640175,0.002,87477.0,87476.0,0.66783564]
[1765982640380,0.00017144,87493.0,87492.0,0.85739]
[1765982640584,0.00017144,87493.0,87492.0,1.21819]
[1765982640788,0.67696,87492.0,87491.0,0.3608]
[1765982640986,0.67696,87485.0,87484.0,0.3608]
[1765982641176,0.00017144,87493.0,87492.0,0.33143]
[1765982641486,0.67696,87491.0,87485.0,0.011433]
[1765982641687,0.67696,87491.0,87484.0,0.3608]
[1765982641883,0.34347,87491.0,87490.0,0.85739]
[1765982642084,0.67696,87491.0,87484.0,0.3608]
[1765982642384,0.34347,87481.0,87480.0,0.20116]
[1765982642687,0.67696,87477.0,87469.0,0.011435]
[1765982642879,0.67696,87477.0,87465.0,0.3608]
[1765982643081,0.67696,87477.0,87465.0,0.3722355]
[1765982643280,0.67696,87477.0,87466.0,0.0114354]
[1765982643482,0.67696,87477.0,87468.0,0.0114351]
[1765982643680,0.67696,87477.0,87467.0,0.0114353]
[1765982643878,0.67696,87477.0,87476.0,0.36097144]
[1765982644085,0.3608,87497.0,87490.0,0.52596]
[1765982644383,0.3722315,87497.0,87492.0,0.3248]
[1765982644689,0.0114313,87499.0,87492.0,1.01703]
[1765982644985,0.69658144,87493.0,87492.0,0.3608]
[1765982645185,0.00017144,87493.0,87492.0,1.05056]
[1765982645979,0.0114331,87485.0,87478.0,0.0114338]
[1765982646181,0.69641,87485.0,87484.0,0.3608]
[1765982646382,0.69641,87485.0,87476.0,0.00017144]
[1765982646586,0.852284,87477.0,87476.0,0.00017144]
[1765982646785,0.87985551,87477.0,87476.0,0.00017144]
[1765982647185,0.73541551,87477.0,87476.0,0.00017144]
[1765982647382,0.87985551,87477.0,87476.0,0.00017144]
[1765982647582,0.69641,87477.0,87476.0,0.00017144]
[1765982647988,0.69641,87477.0,87476.0,0.34545144]
[1765982648582,0.32746,87477.0,87476.0,0.00017144]
[1765982648899,0.0114329,87486.0,87477.0,0.223454]
[1765982649198,0.0114332,87484.0,87477.0,0.223454]
[1765982649386,0.32746,87480.0,87479.0,0.0114337]
[1765982649587,0.67515,87480.0,87479.0,0.3529837]
[1765982649982,0.67515,87477.0,87476.0,0.00017144]
[1765982652395,0.3722326,87488.0,87487.0,0.67994]
[1765982652586,0.67515,87491.0,87490.0,0.0114323]
[1765982652893,0.18404476,87500.0,87490.0,0.0114323]
[1765982652894,0.0114302,87507.0,87492.0,0.67994]
[1765982653390,0.45428651,87508.0,87492.0,0.67994]
[1765982653391,0.17261366,87502.0,87492.0,0.67994]
[1765982653694,0.72612,87517.0,87492.0,0.67994]
[1765982653695,0.0114289,87517.0,87507.0,0.6913701]
[1765982653884,0.02763809,87516.0,87509.0,0.0114299]
[1765982654085,0.0114286,87519.0,87475.0,0.3608]
[1765982654086,0.46212,87476.0,87475.0,0.3608]
[1765982654286,0.46212,87476.0,87472.0,0.21202]
[1765982654489,0.0612038,87498.0,87472.0,0.21202]
[1765982654490,0.0114324,87490.0,87477.0,0.011434]
[1765982654794,0.0114324,87490.0,87486.0,0.21202]
[1765982654795,0.23106,87487.0,87486.0,0.21202]
[1765982654995,0.59186,87487.0,87486.0,0.55357]
[1765982655385,0.011434,87478.0,87475.0,0.00017144]
[1765982655584,0.46212,87476.0,87475.0,0.00017144]
[1765982655986,0.82292,87476.0,87475.0,0.00017144]
[1765982656199,0.85056389,87476.0,87475.0,0.00017144]
[1765982656399,0.85056389,87476.0,87475.0,4e-08]
[1765982656803,0.46212,87459.0,87439.0,0.0114389]
[1765982656993,0.3608,87459.0,87458.0,0.89424683]
[1765982657198,0.3608,87467.0,87459.0,0.0114364]
[1765982657501,0.3608,87467.0,87466.0,0.67994]
[1765982657700,0.38845986,87467.0,87466.0,0.67994]
[1765982657901,0.61951986,87467.0,87463.0,0.0114358]
[1765982658098,0.59186,87467.0,87466.0,0.34155]
[1765982658294,0.61952666,87467.0,87466.0,0.34155]
[1765982658693,0.59186,87467.0,87466.0,0.34155]
[1765982658894,0.59186,87467.0,87460.0,0.0114362]
[1765982659095,0.3608,87467.0,87466.0,0.67994]
[1765982659291,0.00017144,87475.0,87466.0,0.67994]
[1765982659491,0.00017144,87475.0,87474.0,0.67994]
[1765982659798,0.3608,87483.0,87482.0,0.67994]
[1765982660002,0.3608,87483.0,87482.0,0.6913734]
[1765982660399,0.17261366,87492.0,87486.0,0.21202]
[1765982660597,0.46212,87487.0,87486.0,0.21202]
[1765982661197,0.46212,87487.0,87478.0,0.00017144]
[1765982661198,0.23106,87479.0,87478.0,0.00017144]
[1765982661503,0.3608,87482.0,87478.0,0.68011144]
[1765982662302,0.3608,87482.0,87478.0,0.68111144]
[1765982662900,0.3608,87482.0,87478.0,0.68011144]
[1765982663212,0.23106,87479.0,87478.0,0.68011144]
[1765982663708,0.46212,87479.0,87478.0,0.00017144]
[1765982664406,0.3608,87482.0,87481.0,0.67994]
[1765982665800,0.46212,87479.0,87478.0,0.00117144]
[1765982666113,0.46212,87479.0,87478.0,0.00017144]
[1765982666305,0.3608,87482.0,87458.0,0.21430683]
[1765982666500,0.3608,87470.0,87469.0,0.67994]
[1765982666896,0.17261366,87480.0,87479.0,0.34155]
[1765982667095,0.25860931,87480.0,87479.0,0.34155]
[1765982667407,0.3608,87482.0,87481.0,0.34155]
[1765982667708,0.23106,87478.0,87477.0,0.21202]
[1765982667905,0.3608,87482.0,87481.0,0.67994]
[1765982668106,0.38834843,87482.0,87481.0,0.67994]
[1765982668404,0.61940843,87482.0,87481.0,0.67994]
[1765982668908,0.85046843,87482.0,87481.0,0.67994]
[1765982669500,0.46212,87478.0,87477.0,0.21202]
[1765982669707,0.50110233,87478.0,87477.0,0.21202]
[1765982670009,0.48966843,87478.0,87477.0,0.21202]
[1765982670196,0.46212,87471.0,87470.0,0.00017144]
[1765982670404,0.3608,87482.0,87471.0,0.6913748]
[1765982670405,0.3608,87472.0,87471.0,0.6913748]
[1765982672103,0.17261366,87481.0,87480.0,0.67994]
[1765982672414,0.48966209,87481.0,87480.0,0.34155]
[1765982673111,0.3608,87482.0,87481.0,0.6913735]
[1765982673305,0.00017144,87487.0,87486.0,0.6913729]
[1765982673627,0.46229144,87487.0,87486.0,0.67994]
[1765982673806,0.46229144,87487.0,87479.0,0.0114337]
[1765982674009,0.3608,87480.0,87479.0,0.67994]
[1765982674310,0.3608,87480.0,87477.0,0.21202]
[1765982674311,0.00017144,87487.0,87477.0,0.21202]
[1765982674510,0.3608,87482.0,87481.0,0.68486]
[1765982676304,0.0114322,87492.0,87481.0,0.68486]
[1765982676305,0.3608,87508.0,87498.0,0.0114312]
[1765982676514,0.02753593,87507.0,87498.0,0.0114312]
[1765982676714,0.0114304,87505.0,87498.0,0.0114312]
[1765982676920,0.67471,87495.0,87494.0,0.3608]
[1765982677111,0.67471,87495.0,87491.0,0.0114321]
[1765982677112,0.67471,87487.0,87486.0,0.72592]
[1765982677305,0.00017144,87495.0,87486.0,0.72592]
[1765982677510,0.00017144,87495.0,87494.0,0.68251]
[1765982677719,0.67471,87493.0,87492.0,0.20393]
[1765982677922,0.67471,87493.0,87486.0,0.72592]
[1765982678223,0.67471,87487.0,87486.0,0.72592]
[1765982678418,0.00017144,87495.0,87486.0,1.40843]
[1765982678720,0.00017144,87495.0,87490.0,0.0114323]
[1765982678721,0.34958,87491.0,87490.0,0.0114323]